fUST/lending_fUST_20260114
["ID","MTS","AMOUNT","RATE_DAILY","PERIOD"]
[401772437,1768369382491,300.0,0.00010803,2]
[401772438,1768369385143,382.90029756,0.00010803,2]
[401772439,1768369386067,500.0,0.00010803,2]
[401772440,1768369388512,500.0,0.00030136,120]
[401772441,1768369389732,500.0,0.00010803,2]
[401772442,1768369390022,500.0,0.00010803,2]
[401772443,1768369390060,500.0,0.00010803,2]
[401772444,1768369390096,500.0,0.00010803,2]
[401772445,1768369390131,500.0,0.00010803,2]
[401772446,1768369390164,500.0,0.00010803,2]
[401772447,1768369390208,500.0,0.00010803,2]
[401772448,1768369390247,500.0,0.00010803,2]
[401772449,1768369390286,500.0,0.00010803,2]
[401772450,1768369390326,500.0,0.00010803,2]
[401772451,1768369390385,500.0,0.00010803,2]
[401772452,1768369390477,500.0,0.00010803,2]
[401772453,1768369390564,338.37570244,0.00010803,2]
[401772454,1768369390590,161.62429756,0.00010803,2]
[401772455,1768369390730,500.0,0.00010803,2]
[401772456,1768369390826,500.0,0.00010803,2]
[401772457,1768369390878,500.0,0.00010803,2]
[401772458,1768369390933,500.0,0.00010803,2]
[401772459,1768369396439,500.0,0.00010803,2]
[401772460,1768369396485,214.62882572,0.00010803,2]
[401772461,1768369396540,500.0,0.00010803,2]
[401772462,1768369396583,500.0,0.00010803,2]
[401772463,1768369396676,500.0,0.00010803,2]
[401772464,1768369396724,500.0,0.00010803,2]
[401772465,1768369396778,500.0,0.00010803,2]
[401772466,1768369396848,500.0,0.00010803,2]
[401772467,1768369396901,500.0,0.00010803,2]
[401772468,1768369396947,500.0,0.00010803,2]
[401772469,1768369396996,292.31949751,0.00010803,2]
[401772470,1768369397094,500.0,0.00010803,2]
[401772471,1768369397154,500.0,0.00010803,2]
[401772472,1768369397210,500.0,0.00010803,2]
[401772473,1768369397266,500.0,0.00010803,2]
[401772474,1768369397310,500.0,0.00010803,2]
[401772475,1768369397369,331.43737921,0.00010803,2]
[401772476,1768369397404,168.56262079,0.00010803,2]
[401772477,1768369397447,500.0,0.00010803,2]
[401772478,1768369397496,500.0,0.00010803,2]
[401772479,1768369397547,500.0,0.00010803,2]
[401772480,1768369397619,500.0,0.00010803,2]
[401772481,1768369397663,500.0,0.00010803,2]
[401772482,1768369397756,500.0,0.00010803,2]
[401772483,1768369397802,500.0,0.00010803,2]
[401772484,1768369397856,500.0,0.00010803,2]
[401772485,1768369397898,500.0,0.00010803,2]
[401772486,1768369397948,500.0,0.00010803,2]
[401772487,1768369398009,500.0,0.00010803,2]
[401772488,1768369398051,500.0,0.00010803,2]
[401772489,1768369398099,500.0,0.00010803,2]
[401772490,1768369398152,500.0,0.00010803,2]
[401772491,1768369398203,500.0,0.00010803,2]
[401772492,1768369398245,500.0,0.00010803,2]
[401772493,1768369398303,500.0,0.00010803,2]
[401772494,1768369398373,500.0,0.00010803,2]
[401772495,1768369398435,500.0,0.00010803,2]
[401772496,1768369398484,331.44737921,0.00010803,2]
[401772497,1768369398520,168.55262079,0.00010803,2]
[401772498,1768369398573,500.0,0.00010803,2]
[401772499,1768369398630,500.0,0.00010803,2]
[401772500,1768369398684,500.0,0.00010803,2]
[401772501,1768369398745,500.0,0.00010803,2]
[401772502,1768369398802,500.0,0.00010803,2]
[401772503,1768369398860,500.0,0.00010803,2]
[401772504,1768369398910,500.0,0.00010803,2]
[401772505,1768369398976,500.0,0.00010803,2]
[401772506,1768369399021,500.0,0.00010803,2]
[401772507,1768369399110,500.0,0.00010803,2]
[401772508,1768369399281,434.32061791,0.00010803,2]
[401772509,1768369399345,500.0,0.00010803,2]
[401772510,1768369399419,500.0,0.00010803,2]
[401772511,1768369399485,500.0,0.00010803,2]
[401772512,1768369399537,500.0,0.00010803,2]
[401772513,1768369399596,500.0,0.00010803,2]
[401772514,1768369417426,514.63922954,0.00010553,2]
[401772515,1768369419794,500.0,0.00010803,2]
[401772516,1768369419827,500.0,0.00010803,2]
[401772517,1768369419860,500.0,0.00010803,2]
[401772518,1768369419892,500.0,0.00010803,2]
[401772519,1768369419927,500.0,0.00010803,2]
[401772520,1768369419971,500.0,0.00010803,2]
[401772521,1768369420009,500.0,0.00010803,2]
[401772522,1768369420056,500.0,0.00010803,2]
[401772523,1768369420096,500.0,0.00010803,2]
[401772524,1768369420141,500.0,0.00010803,2]
[401772525,1768369420177,500.0,0.00010803,2]
[401772526,1768369420215,500.0,0.00010803,2]
[401772527,1768369420256,500.0,0.00010803,2]
[401772528,1768369420300,500.0,0.00010803,2]
[401772529,1768369420333,214.62882572,0.00010803,2]
[401772530,1768369420385,500.0,0.00010803,2]
[401772531,1768369420419,500.0,0.00010803,2]
[401772532,1768369420460,500.0,0.00010803,2]
[401772533,1768369420504,500.0,0.00010803,2]
[401772534,1768369420548,270.74194474,0.00010803,2]
[401772535,1768369420575,229.25805526,0.00010803,2]
[401772536,1768369420614,435.67730801,0.00010803,2]
[401772537,1768369420647,500.0,0.00010803,2]
[401772538,1768369420685,500.0,0.00010803,2]
[401772539,1768369420729,500.0,0.00010803,2]
[401772540,1768369420760,500.0,0.00010803,2]
[401772541,1768369420798,500.0,0.00010803,2]
[401772542,1768369420841,500.0,0.00010803,2]
[401772543,1768369420881,500.0,0.00010803,2]
[401772544,1768369420944,500.0,0.00010803,2]
[401772545,1768369420985,500.0,0.00010803,2]
[401772546,1768369421044,500.0,0.00010803,2]
[401772547,1768369421077,500.0,0.00010803,2]
[401772548,1768369421113,500.0,0.00010803,2]
[401772549,1768369421156,2056.49836125,0.00010553,2]
[401772550,1768369421196,500.0,0.00010803,2]
[401772551,1768369421240,500.0,0.00010803,2]
[401772552,1768369421284,278.57627548,0.00010803,2]
[401772553,1768369421311,221.42372452,0.00010803,2]
[401772554,1768369421345,500.0,0.00010803,2]
[401772555,1768369421392,500.0,0.00010803,2]
[401772556,1768369421438,500.0,0.00010803,2]
[401772557,1768369421479,500.0,0.00010803,2]
[401772558,1768369421524,500.0,0.00010803,2]
[401772559,1768369421565,500.0,0.00010803,2]
[401772560,1768369421613,500.0,0.00010803,2]
[401772561,1768369421809,500.0,0.00010803,2]
[401772562,1768369421844,500.0,0.00010803,2]
[401772563,1768369421874,500.0,0.00010803,2]
[401772564,1768369421912,434.32061791,0.00010803,2]
[401772565,1768369421943,500.0,0.00010803,2]
[401772566,1768369421972,500.0,0.00010803,2]
[401772567,1768369449256,500.0,0.00010803,2]
[401772568,1768369449289,500.0,0.00010803,2]
[401772569,1768369450110,164.75495024,0.00010803,2]
[401772570,1768369472507,193.82980622,0.00010735,2]
[401772571,1768369472542,500.0,0.00010735,2]
[401772572,1768369492419,500.0,0.00010803,2]
[401772573,1768369494018,500.0,0.00010803,2]
[401772575,1768369495826,485.68090111,0.00010803,2]
[401772576,1768369495853,14.31909889,0.00010803,2]
[401772577,1768369498539,500.0,0.00010803,2]
[401772578,1768369500152,250.0,0.00010803,2]
[401772579,1768369511392,461.67526834,0.00010804,2]
[401772580,1768369511757,2230.315306,0.00010804,2]
[401772581,1768369511797,6543.70032677,0.00010804,2]
[401772582,1768369511827,1204.25564089,0.00010804,2]
[401772583,1768369512116,500.0,0.00010735,2]
[401772584,1768369513655,-565.38932326,0.00010804,2]
[401772585,1768369513695,-268.03020829,0.00010806,2]
[401772586,1768369513737,-500.0,0.00010806,2]
[401772587,1768369513777,-500.0,0.00010806,2]
[401772588,1768369513814,-500.0,0.00010806,2]
[401772589,1768369513851,-500.0,0.00010806,2]
[401772590,1768369513891,-500.0,0.00010806,2]
[401772591,1768369513931,-500.0,0.00010806,2]
[401772592,1768369513971,-500.0,0.00010806,2]
[401772593,1768369514011,-500.0,0.00010806,2]
[401772594,1768369514651,-500.0,0.00010806,2]
[401772595,1768369514694,-500.0,0.00010806,2]
[401772596,1768369514733,-617.87232479,0.00010806,2]
[401772597,1768369514773,-500.0,0.00010806,2]
[401772598,1768369514815,-500.0,0.00010806,2]
[401772599,1768369514855,-500.0,0.00010806,2]
[401772600,1768369514897,-500.0,0.00010806,2]
[401772601,1768369514940,-500.0,0.00010806,2]
[401772602,1768369514978,-500.0,0.00010806,2]
[401772603,1768369515016,-264.26535042,0.00010806,2]
[401772604,1768369515224,-235.73464958,0.00010806,2]
[401772605,1768369515265,-500.0,0.00010806,2]
[401772606,1768369515307,-500.0,0.00010806,2]
[401772607,1768369515343,-500.0,0.00010806,2]
[401772608,1768369515378,-500.0,0.00010806,2]
[401772609,1768369515414,-500.0,0.00010806,2]
[401772610,1768369515454,-500.0,0.00010806,2]
[401772611,1768369515491,-500.0,0.00010806,2]
[401772612,1768369515527,-602.54350567,0.00010806,2]
[401772613,1768369515563,-500.0,0.00010806,2]
[401772614,1768369515631,-500.0,0.00010806,2]
[401772615,1768369515669,-500.0,0.00010806,2]
[401772616,1768369515708,-500.0,0.00010806,2]
[401772617,1768369515742,-500.0,0.00010806,2]
[401772618,1768369515779,-500.0,0.00010806,2]
[401772619,1768369515818,-500.0,0.00010806,2]
[401772620,1768369515866,-367.92369045,0.00010806,2]
[401772621,1768369515910,-500.0,0.00010806,2]
[401772622,1768369515952,-500.0,0.00010806,2]
[401772623,1768369518107,250.0,0.00010804,2]
[401772624,1768369520901,500.0,0.00010806,2]
[401772625,1768369520958,500.0,0.00010806,2]
[401772626,1768369521181,14.1626191,0.00010806,2]
[401772627,1768369521210,218.34800825,0.00010806,2]
[401772628,1768369521248,500.0,0.00010806,2]
[401772629,1768369521363,500.0,0.00010806,2]
[401772630,1768369521480,500.0,0.00010806,2]
[401772631,1768369523540,1957.856,0.00010804,2]
[401772632,1768369529535,-300.0,0.00010806,2]
[401772633,1768369529576,-238.0,0.00010806,2]
[401772634,1768369529608,-1200.0,0.00010806,2]
[401772635,1768369537004,4892.4811427,9.882e-05,2]
[401772636,1768369560101,-3024.59126112,0.00010807,2]
[401772637,1768369560117,-10000.01,0.00010807,2]
[401772638,1768369560211,-10000.01,0.00010807,2]
[401772639,1768369560502,-10000.01,0.00010807,2]
[401772640,1768369560611,-10000.01,0.00010807,2]
[401772641,1768369560734,-10000.01,0.00010807,2]
[401772642,1768369560849,-10000.01,0.00010807,2]
[401772643,1768369608702,154.31,6.811e-05,2]
[401772644,1768369609112,185.17,7.084e-05,2]
[401772645,1768369609540,216.03,7.356e-05,2]
[401772646,1768369609940,246.89,7.629e-05,2]
[401772647,1768369610347,277.76,7.901e-05,2]
[401772648,1768369610752,308.62,8.173e-05,2]
[401772654,1768369825235,10000.01,0.00010707,2]
[401772655,1768369825265,10000.01,0.00010707,2]
[401772656,1768369825296,10000.01,0.00010707,2]
[401772657,1768369825326,10000.01,0.00010707,2]
[401772677,1768369831941,-11971.67728835,0.00010707,2]
[401772699,1768369837948,-1637.54214461,0.00010707,2]
[401772700,1768369837961,-1879.21932739,0.00010707,2]
[401772803,1768369840804,-0.00305603,0.00010707,2]
[401772805,1768369840815,-8436.3271995,0.00010707,2]
[401773011,1768369843064,-8611.23,0.00010707,2]
[401773022,1768369843160,-10000.01,0.00010707,2]
[401773037,1768369843293,-10000.01,0.00010707,2]
[401773058,1768369843480,-10000.01,0.00010707,2]
[401773073,1768369843618,-10000.01,0.00010707,2]
[401773234,1768369845237,-10008.79761351,0.00010707,2]
[401773238,1768369845263,-10000.01,0.00010707,2]
[401773241,1768369845281,-10000.01,0.00010707,2]
[401773246,1768369845316,-10000.01,0.00010707,2]
[401773263,1768369845453,-10000.01,0.00010707,2]
[401773278,1768369845586,-10000.01,0.00010707,2]
[401773308,1768369845875,-39143.49923017,0.00010707,2]
[401774105,1768369874334,161.33,7.689e-05,2]
[401774106,1768369874734,184.37,7.974e-05,2]
[401774107,1768369875135,207.42,8.259e-05,2]
[401774108,1768369875554,230.47,8.544e-05,2]
[401774109,1768369903031,463.07955497,0.00030136,120]
[401774110,1768370228376,268.10572945,9.935e-05,2]
[401774111,1768370231903,1071.35049487,9.935e-05,2]
[401774112,1768370318790,167.80764613,9.927e-05,2]
[401774114,1768370483312,1491.11476276,8.246e-05,2]
[401774115,1768370531292,379.36238223,9.927e-05,2]
[401774116,1768370586438,250.0,0.00010242,2]
[401774117,1768370636386,377.50700421,9.844e-05,2]
[401774118,1768370639117,1510.02801683,9.844e-05,2]
[401774119,1768370642278,3394.16547483,9.844e-05,2]
[401774120,1768370642373,155.80997937,0.00010107,2]
[401774123,1768370656479,5013.0,0.00030136,120]
[401774124,1768370778780,-150.40566175,0.00010351,2]
[401774125,1768370793995,-564.7221343,0.00010351,2]
[401774126,1768370809649,-565.0,0.00010351,2]
[401774127,1768370825141,-300.0,0.00010359,2]
[401774129,1768370840508,-500.0,0.0001036,2]
[401774130,1768370840539,-500.0,0.0001036,2]
[401774131,1768370840569,-500.0,0.0001036,2]
[401774132,1768370840602,-500.0,0.0001036,2]
[401774133,1768370840634,-500.0,0.0001036,2]
[401774134,1768370840666,-500.0,0.0001036,2]
[401774135,1768370840698,-500.0,0.0001036,2]
[401774136,1768370840729,-500.0,0.0001036,2]
[401774137,1768370840762,-500.0,0.0001036,2]
[401774138,1768370840792,-500.0,0.0001036,2]
[401774139,1768370840926,-500.0,0.0001036,2]
[401774140,1768370840958,-500.0,0.0001036,2]
[401774141,1768370840992,-383.24893947,0.0001036,2]
[401774142,1768370841022,-278.34052776,0.0001036,2]
[401774143,1768370841056,-500.0,0.0001036,2]
[401774144,1768370841090,-500.0,0.0001036,2]
[401774145,1768370841121,-500.0,0.0001036,2]
[401774146,1768370841151,-500.0,0.0001036,2]
[401774147,1768370841183,-500.0,0.0001036,2]
[401774148,1768370841213,-461.66520938,0.0001036,2]
[401774149,1768370841246,-253.50064678,0.0001036,2]
[401774150,1768370841508,-246.49935322,0.0001036,2]
[401774151,1768370841539,-484.8430128,0.0001036,2]
[401774152,1768370841573,-500.0,0.0001036,2]
[401774153,1768370841611,-500.0,0.0001036,2]
[401774154,1768370841645,-500.0,0.0001036,2]
[401774155,1768370841676,-500.0,0.0001036,2]
[401774156,1768370841708,-500.0,0.0001036,2]
[401774157,1768370841740,-500.0,0.0001036,2]
[401774158,1768370841774,-500.0,0.0001036,2]
[401774159,1768370841806,-500.0,0.0001036,2]
[401774160,1768370841844,-37.32526796,0.0001036,2]
[401774161,1768370842008,-462.67473204,0.0001036,2]
[401774162,1768370842042,-500.0,0.0001036,2]
[401774163,1768370842073,-500.0,0.0001036,2]
[401774164,1768370842103,-500.50072063,0.0001036,2]
[401774165,1768370842134,-500.0,0.0001036,2]
[401774166,1768370842166,-500.0,0.0001036,2]
[401774167,1768370842200,-500.0,0.0001036,2]
[401774168,1768370842233,-500.0,0.0001036,2]
[401774169,1768370842265,-500.0,0.0001036,2]
[401774170,1768370842295,-500.0,0.0001036,2]
[401774171,1768370842437,-368.37170015,0.0001036,2]
[401774172,1768370842470,-500.0,0.0001036,2]
[401774173,1768370842504,-500.0,0.0001036,2]
[401774174,1768370842537,-500.0,0.0001036,2]
[401774175,1768370842574,-500.0,0.0001036,2]
[401774176,1768370842607,-500.0,0.0001036,2]
[401774177,1768370842652,-500.0,0.0001036,2]
[401774178,1768370842694,-500.0,0.0001036,2]
[401774179,1768370842735,-500.0,0.0001036,2]
[401774180,1768370842779,-500.0,0.0001036,2]
[401774181,1768370843071,-500.0,0.0001036,2]
[401774182,1768370843112,-500.0,0.0001036,2]
[401774183,1768370843153,-500.0,0.0001036,2]
[401774184,1768370843196,-550.0,0.0001036,2]
[401774185,1768370843235,-500.0,0.0001036,2]
[401774186,1768370843276,-500.0,0.0001036,2]
[401774187,1768370843314,-500.0,0.0001036,2]
[401774188,1768370843352,-500.0,0.0001036,2]
[401774189,1768370843392,-500.0,0.0001036,2]
[401774190,1768370843432,-400.01,0.0001036,2]
[401774191,1768370843557,-99.99,0.0001036,2]
[401774192,1768370843596,-500.0,0.0001036,2]
[401774193,1768370843635,-500.0,0.0001036,2]
[401774194,1768370843672,-500.0,0.0001036,2]
[401774195,1768370843712,-650.0,0.0001036,2]
[401774196,1768370843751,-500.0,0.0001036,2]
[401774197,1768370843789,-500.58013402,0.0001036,2]
[401774198,1768370843827,-500.0,0.0001036,2]
[401774199,1768370843873,-500.0,0.0001036,2]
[401774200,1768370843931,-500.0,0.0001036,2]
[401774201,1768370843983,-183.52443067,0.0001036,2]
[401774202,1768370844058,-131.82087062,0.0001036,2]
[401774203,1768370844090,-488.23599034,0.0001036,2]
[401774204,1768370845536,-11.76400966,0.0001036,2]
[401774205,1768370845569,-500.0,0.0001036,2]
[401774206,1768370845606,-500.0,0.0001036,2]
[401774207,1768370845642,-500.0,0.0001036,2]
[401774208,1768370845676,-500.0,0.0001036,2]
[401774209,1768370845710,-500.0,0.0001036,2]
[401774210,1768370845745,-500.0,0.0001036,2]
[401774211,1768370845780,-500.0,0.0001036,2]
[401774212,1768370845814,-500.0,0.0001036,2]
[401774213,1768370845847,-500.0,0.0001036,2]
[401774214,1768370845881,-476.48198068,0.0001036,2]
[401774215,1768370845995,-23.51801932,0.0001036,2]
[401774216,1768370846030,-500.0,0.0001036,2]
[401774217,1768370846066,-500.0,0.0001036,2]
[401774218,1768370846102,-500.0,0.0001036,2]
[401774219,1768370846135,-306.3244717,0.0001036,2]
[401774220,1768370846168,-500.0,0.0001036,2]
[401774221,1768370846202,-500.0,0.0001036,2]
[401774222,1768370846248,-500.0,0.0001036,2]
[401774223,1768370846288,-500.0,0.0001036,2]
[401774224,1768370846325,-500.0,0.0001036,2]
[401774225,1768370846362,-500.0,0.0001036,2]
[401774226,1768370846525,-500.0,0.0001036,2]
[401774227,1768370846561,-500.0,0.0001036,2]
[401774228,1768370846595,-500.0,0.0001036,2]
[401774229,1768370846631,-500.0,0.0001036,2]
[401774230,1768370846667,-500.0,0.0001036,2]
[401774231,1768370846702,-500.0,0.0001036,2]
[401774232,1768370846738,-500.0,0.0001036,2]
[401774233,1768370846773,-500.0,0.0001036,2]
[401774234,1768370846809,-500.0,0.0001036,2]
[401774235,1768370846844,-500.0,0.0001036,2]
[401774236,1768370848489,-247.8309821,0.0001036,2]
[401774237,1768370850113,-164.73874826,0.0001036,2]
[401774238,1768370851701,-87.43026964,0.0001036,2]
[401774239,1768370851728,-171.88060256,0.0001036,2]
[401774240,1768370852673,-328.11939744,0.0001036,2]
[401774241,1768370852710,-500.0,0.0001036,2]
[401774242,1768370852746,-500.0,0.0001036,2]
[401774243,1768370852784,-201.4814417,0.0001036,2]
[401774244,1768370852820,-500.0,0.0001036,2]
[401774245,1768370852856,-500.0,0.0001036,2]
[401774246,1768370852890,-500.0,0.0001036,2]
[401774247,1768370852924,-500.0,0.0001036,2]
[401774248,1768370853316,-167.32207296,0.0001036,2]
[401774249,1768370854773,-82.43752016,0.0001036,2]
[401774250,1768370854798,-69.87544534,0.0001036,2]
[401774251,1768370856902,983.93556669,9.844e-05,2]
[401774252,1768370856932,-266.06967552,0.0001036,2]
[401774253,1768370859090,-164.05487914,0.0001036,2]
[401774254,1768370859115,-100.49899566,0.0001036,2]
[401774255,1768370859629,3931.8065245,9.844e-05,2]
[401774256,1768370861750,-238.72285067,0.0001036,2]
[401774257,1768370863970,-160.77815367,0.0001036,2]
[401774258,1768370863997,-7.25961672,0.0001036,2]
[401774259,1768370871581,-263.51690663,0.0001036,2]
[401774260,1768370873013,-199.81028461,0.0001036,2]
[401774261,1768370875233,-29.41319204,0.0001036,2]
[401774262,1768370875259,-168.12979253,0.0001036,2]
[401774263,1768370877597,-331.87020747,0.0001036,2]
[401774264,1768370877624,-96.67537621,0.0001036,2]
[401774265,1768370882833,300.0,0.00010359,2]
[401774266,1768370884586,226.81,8.238e-05,2]
[401774267,1768370884939,226.81,8.238e-05,2]
[401774268,1768370885213,226.79,8.238e-05,2]
[401774269,1768370886416,-309.10288287,0.0001036,2]
[401774270,1768370888007,-94.22174092,0.0001036,2]
[401774271,1768370888032,-310.51046058,0.0001036,2]
[401774272,1768370890072,-189.48953942,0.0001036,2]
[401774273,1768370890097,-67.57681662,0.0001036,2]
[401774274,1768370893160,-156.33034166,0.0001036,2]
[401774275,1768370894650,-222.17185254,0.0001036,2]
[401774276,1768370896330,713.97348946,0.00010359,2]
[401774277,1768370896722,-53.92098918,0.0001036,2]
[401774278,1768370896749,-106.92956404,0.0001036,2]
[401774279,1768370898246,-232.37590005,0.0001036,2]
[401774280,1768370900311,-160.69453591,0.0001036,2]
[401774281,1768370900343,-22.95304169,0.0001036,2]
[401774282,1768370904331,213.1126753,9.509e-05,2]
[401774283,1768370905108,-180.05968308,0.0001036,2]
[401774284,1768370906646,-85.01770819,0.0001036,2]
[401774285,1768370906669,-188.90029181,0.0001036,2]
[401774286,1768370911000,-311.09970819,0.0001036,2]
[401774287,1768370911024,-138.13096114,0.0001036,2]
[401774288,1768370912697,-205.14083363,0.0001036,2]
[401774289,1768370917481,-156.72820523,0.0001036,2]
[401774290,1768370917511,-29.09637286,0.0001036,2]
[401774291,1768370919520,-206.16292862,0.0001036,2]
[401774292,1768370922044,-264.74069852,0.0001036,2]
[401774293,1768370922071,-405.17421908,0.0001036,2]
[401774294,1768370923646,-94.82578092,0.0001036,2]
[401774295,1768370923673,-500.0,0.0001036,2]
[401774296,1768370923697,-217.89173053,0.0001036,2]
[401774297,1768370925148,-282.10826947,0.0001036,2]
[401774298,1768370925174,-273.88900048,0.0001036,2]
[401774299,1768370926737,-276.11099952,0.0001036,2]
[401774300,1768370926761,-136.81785501,0.0001036,2]
[401774301,1768370927509,436.13599936,9.844e-05,2]
[401774302,1768370928190,-175.86,0.0001036,2]
[401774303,1768370930448,-187.32214499,0.0001036,2]
[401774304,1768370930474,-13.73617473,0.0001036,2]
[401774305,1768370931787,1744.54399743,9.844e-05,2]
[401774306,1768370934372,-438.12227503,0.0001036,2]
[401774307,1768370935744,3925.22399421,9.844e-05,2]
[401774308,1768370938216,-187.20418056,0.0001036,2]
[401774309,1768370938239,-28.66521347,0.0001036,2]
[401774310,1768370939951,3894.106009,9.844e-05,2]
[401774311,1768370939975,3077.09180471,9.844e-05,2]
[401774312,1768370940969,-163.55,0.0001036,2]
[401774313,1768370943011,-307.78478653,0.0001036,2]
[401774314,1768370943035,-127.29293844,0.0001036,2]
[401774315,1768370945883,-172.70706156,0.0001036,2]
[401774316,1768370945906,-137.11780166,0.0001036,2]
[401774317,1768370948534,-221.67868038,0.0001036,2]
[401774318,1768370950896,-331.74901123,0.0001036,2]
[401774319,1768370950919,-168.25098877,0.0001036,2]
[401774320,1768370952435,-350.94916758,0.0001036,2]
[401774321,1768370953961,-449.35467069,0.0001036,2]
[401774322,1768370955509,-94.3273713,0.0001036,2]
[401774323,1768370955532,-146.94011005,0.0001036,2]
[401774324,1768370957540,-153.05988995,0.0001036,2]
[401774325,1768370957562,-80.16473505,0.0001036,2]
[401774326,1768370960187,-189.57,0.0001036,2]
[401774327,1768370964308,180.45249499,0.0001036,2]
[401774328,1768370965107,-30.26526495,0.0001036,2]
[401774329,1768370965131,-269.73473505,0.00010361,2]
[401774330,1768370967164,-174.83171518,0.00010361,2]
[401774331,1768370967186,-210.2553064,0.00010361,2]
[401774332,1768370968583,500.0,0.0001036,2]
[401774333,1768370968634,446.85581514,0.0001036,2]
[401774334,1768370969729,-257.59938717,0.00010361,2]
[401774335,1768370969751,-72.56054758,0.00010361,2]
[401774336,1768370971314,571.16233119,0.0001036,2]
[401774337,1768370972208,500.0,0.0001036,2]
[401774338,1768370972261,500.0,0.0001036,2]
[401774339,1768370972298,500.0,0.0001036,2]
[401774340,1768370972335,487.73256538,0.0001036,2]
[401774341,1768370972372,500.0,0.0001036,2]
[401774342,1768370972414,376.5872601,0.0001036,2]
[401774343,1768370972587,-295.18304367,0.00010361,2]
[401774344,1768370974696,-300.0,0.00010361,2]
[401774345,1768370977611,-167.60787051,0.00010361,2]
[401774346,1768370981000,-228.75034092,0.00010361,2]
[401774347,1768370982514,-203.64178857,0.00010361,2]
[401774348,1768370984693,-214.21744863,0.00010361,2]
[401774364,1768371032160,-1465.44631689,0.00010361,2]
[401774366,1768371032170,-300.0,0.00010361,2]
[401774368,1768371032179,-1200.0,0.00010361,2]
[401774370,1768371032188,-565.0,0.00010361,2]
[401774372,1768371032197,-285.59378811,0.00010362,2]
[401774374,1768371032206,-1142.37515243,0.00010362,2]
[401774375,1768371032216,-2570.34409296,0.00010362,2]
[401774378,1768371032225,-311.85701,0.0001039,2]
[401774380,1768371032235,-1957.856,0.0001039,2]
[401774383,1768371032244,-11200.6845883,0.0001039,2]
[401774387,1768371032253,-2230.315306,0.0001039,2]
[401774390,1768371032263,-2030.296672,0.00010445,2]
[401774392,1768371032272,-177.35746181,0.00010498,2]
[401774395,1768371032281,-2105.41764886,0.000105,2]
[401774397,1768371032289,-177.35746178,0.00010544,2]
[401774398,1768371032299,-2183.31810187,0.00010555,2]
[401774399,1768371032309,-178.93,0.00010589,2]
[401774400,1768371032318,-177.35746178,0.00010589,2]
[401774401,1768371032327,-19645.61267453,0.0001059,2]
[401774508,1768371041033,-3e-08,0.0001059,2]
[401774941,1768371045640,-412.95238013,0.0001059,2]
[401775004,1768371046306,-1278.75682679,0.0001059,2]
[401775965,1768371108998,500.0,0.0001036,2]
[401775966,1768371109291,620.61697037,0.0001036,2]
[401775967,1768371115262,500.0,0.00010389,2]
[401775968,1768371115295,162.40724549,0.00010389,2]
[401775969,1768371115337,542.5832155,0.00010389,2]
[401775970,1768371115376,500.0,0.00010389,2]